[Event "MCCT Oslo Esports Cup 2022"]
[Site "Oslo"]
[Date "2022.04.20"]
[Round "4.5"]
[White "Mamedyarov, Shakhriyar"]
[Black "Duda, Jan-Krzysztof"]
[Result "0-1"]
[ECO "D78"]
[WhiteElo "2771"]
[BlackElo "2750"]
[Annotator "TA"]
[PlyCount "126"]
[EventDate "2022.04.14"]
[EventType "tourn"]
[EventCountry "NOR"]
[SourceTitle "playchess.com"]
[Source "ChessBase"]
[SourceQuality "1"]
[TimeControl "300+3"]

{[%evp 14,126,12,23,25,6,14,0,4,0,16,27,35,5,85,87,93,85,122,119,137,116,117,122,112,101,180,169,182,0,0,0,8,-45,-52,-149,-123,-97,-87,-123,-135,-111,-98,-165,-120,-129,-135,-132,-123,-133,-135,-118,-127,-124,-105,-108,-101,-108,-108,-123,-126,-122,-93,-110,-109,-124,-109,-116,-125,-79,-99,-106,-108,-113,-90,-125,-122,-167,-134,-122,-96,-115,-115,-197,-197,-209,-209,-208,-208,-209,-209,-291,-288,-293,-293,-294,-282,-287,-276,-274,-263,-419,-417,-387,-364,-549,-535,-29977,-29978,-29978,-29979,-29978,-29979,-29977,-29977]} 1. d4 {[%emt 0:00:00]} Nf6 {[%emt 0:00:00]} 2. c4 {[%emt 0:00:01]} g6 {[%emt 0:00:01]} 3. g3 {[%emt 0:00:01]} c6 {[%emt 0:00:02]} 4. Nf3 {[%emt 0:00:06]} d5 {[%emt 0:00:01]} 5. Qb3 {[%emt 0:00:00]} Bg7 {[%emt 0:00:02]} 6. Bg2 {[%emt 0:00:02]} O-O {[%emt 0:00:01]} 7. O-O {[%emt 0:00:00]} dxc4 {[%emt 0:00:04]} 8. Qxc4 {[%emt 0:00:00]} Bf5 {[%emt 0:00:01] D78: Fianchetto Grünfeld: 6 0-0 c6.} 9. e3 {[%emt 0:00:01]} Nbd7 {[%emt 0:00:02] [#]} 10. h3 $146 {[%emt 0:00:04]} ({Predecessor:} 10. Qe2 Qc7 11. Nc3 e5 12. Nxe5 Nxe5 13. dxe5 Qxe5 14. e4 Be6 15. Rd1 Rfd8 16. Bf4 Qa5 17. Bd2 Qc5 18. Be3 Qa5 19. Bd2 Qc5 20. Be3 Qa5 {½-½ (20) Fridman,D (2661)-Smirin,I (2670) Porto Carras 2011}) 10... Rc8 {[%emt 0:00:26] The position is equal.} (10... Qc7 {is more complex.} 11. Ng5 Nb6 12. Qe2 Bxb1 13. Rxb1 e5) 11. Qe2 {[%emt 0:00:01]} Re8 {[%emt 0:00:31]} 12. Rd1 {[%emt 0:00:06]} Qb6 {[%emt 0:00:11]} 13. Nbd2 {[%emt 0:00:29]} h6 {[%emt 0:01:21]} (13... Bc2 $11 {remains equal.}) 14. e4 $16 {[%emt 0:00:08] [#] And now Nc4 would win.} Be6 {[%emt 0:00:01]} 15. b3 {[%emt 0:00:00]} g5 {[%emt 0:00:22]} 16. Bb2 {[%emt 0:00:11]} Nf8 {[%emt 0:00:01]} 17. Ne5 {[%emt 0:00:12]} N6d7 {[%emt 0:00:14]} 18. Nec4 {[%emt 0:00:27]} Qa6 {[%emt 0:00:02]} 19. Bf1 {[%emt 0:00:08]} c5 {[%emt 0:00:22]} (19... Rcd8 $16) 20. d5 $18 {[%emt 0:00:19] [#] Strongly threatening Bxg7.} Bxh3 {[%emt 0:00:01]} 21. Bxh3 $2 {[%emt 0:00:14]} ({White has to play} 21. Bxg7 $18 Bxf1 22. Nxf1 (22. Rxf1 Kxg7 23. f4 Qg6 $11) 22... Kxg7 23. Nfe3) 21... Bxb2 $11 {[%emt 0:00:02]} 22. Rab1 {[%emt 0:00:01]} Bg7 {[%emt 0:00:03]} 23. e5 {[%emt 0:00:08]} (23. Nf3 $11) 23... Bxe5 $1 $15 {[%emt 0:00:11]} 24. Re1 {[%emt 0:00:24]} (24. Ne4 $15) 24... Bg7 {[%emt 0:00:06]} ({But not} 24... Qxa2 25. Nxe5 Nxe5 26. Bxc8 (26. Ra1 $2 Qxd2 27. Qxe5 Ra8 $19) 26... Qxd2 27. Qxe5 (27. Bxb7 Qxe2 28. Rxe2 Rb8 $16) 27... Rxc8 28. Rbd1 $18) 25. Ne4 {[%emt 0:00:13]} Rcd8 {[%emt 0:00:31]} 26. a4 {[%emt 0:00:21]} Qg6 {[%emt 0:00:13]} 27. Qf3 {[%emt 0:00:10] Inhibits f5.} Bd4 {[%emt 0:00:02]} 28. Kg2 {[%emt 0:00:11]} (28. b4 $17 {was worth a try.}) 28... Nf6 {[%emt 0:00:20]} 29. Bf5 {[%emt 0:00:08]} Qg7 {[%emt 0:00:01]} 30. d6 {[%emt 0:00:09]} e6 {[%emt 0:00:12]} 31. Nxf6+ {[%emt 0:00:29]} Qxf6 {[%emt 0:00:00]} 32. Be4 {[%emt 0:00:00]} Qxf3+ {[%emt 0:00:26]} 33. Bxf3 {[%emt 0:00:00]} Rb8 {[%emt 0:00:07]} 34. Red1 {[%emt 0:00:12]} b6 {[%emt 0:00:07]} 35. b4 {[%emt 0:00:02]} Red8 {[%emt 0:00:02]} 36. b5 {[%emt 0:00:39]} Nd7 {[%emt 0:00:16]} 37. Bc6 {[%emt 0:00:08]} Kg7 {[%emt 0:00:14]} 38. Rb3 {[%emt 0:00:12]} Nf6 {[%emt 0:00:03]} 39. a5 {[%emt 0:00:03]} bxa5 {[%emt 0:00:11]} 40. Ra3 {[%emt 0:00:01]} Ne8 {[%emt 0:00:01]} 41. d7 {[%emt 0:00:05]} Nf6 {[%emt 0:00:04]} 42. Rxa5 {[%emt 0:00:01]} Nxd7 {[%emt 0:00:01]} 43. Rxa7 {[%emt 0:00:00]} Nb6 {[%emt 0:00:04]} 44. Nxb6 {[%emt 0:00:17]} Rxb6 {[%emt 0:00:00]} 45. Re1 {[%emt 0:00:01]} Kf6 {[%emt 0:00:06]} 46. Rh1 {[%emt 0:00:00]} Rh8 {[%emt 0:00:02]} 47. Rd7 {[%emt 0:00:04]} h5 {[%emt 0:00:02][%cal Bh6h5,Bh5h4][%mdl 32]} 48. g4 {[%emt 0:00:16]} (48. f4 $17 {was called for.}) 48... h4 $19 {[%emt 0:00:05]} 49. Rh3 {[%emt 0:00:00]} Be5 {[%emt 0:00:02]} 50. Rf3+ {[%emt 0:00:02]} Bf4 {[%emt 0:00:02]} 51. Rc3 {[%emt 0:00:00]} Rbb8 {[%emt 0:00:05]} 52. Kh3 {[%emt 0:00:02]} Rhd8 {[%emt 0:00:04]} 53. Rxd8 {[%emt 0:00:14]} Rxd8 {[%emt 0:00:00][%mdl 4096] Endgame KRB-KRB} 54. b6 {[%emt 0:00:00]} Rd2 {[%emt 0:00:03]} 55. Kg2 {[%emt 0:00:03]} Rb2 {[%emt 0:00:05]} 56. b7 {[%emt 0:00:00]} Bd6 {[%emt 0:00:02]} 57. Ra3 {[%emt 0:00:21]} (57. Kf1 $142) 57... c4 {[%emt 0:00:01][%cal Bc5c4,Bc4b3,Bb3b2][%mdl 32]} 58. Rc3 {[%emt 0:00:03]} Rb4 {[%emt 0:00:02]} 59. Kf3 {[%emt 0:00:04]} (59. Re3 $142) 59... Rb3 {[%emt 0:00:06]} 60. Rxb3 {[%emt 0:00:04]} cxb3 {[%emt 0:00:00] Black mates.} 61. Kg2 {[%emt 0:00:10]} Ke5 {[%emt 0:00:02]} 62. Ba4 {[%emt 0:00:01]} b2 {[%emt 0:00:01]} 63. Bc2 {[%emt 0:00:03]} Kd4 {[%emt 0:00:01] What a bad dream for White.  Weighted Error Value: White=0.33/Black=0.12 (very precise)} 0-1

[Event "MCCT Oslo Esports Cup 2022"]
[Site "Oslo"]
[Date "2022.04.20"]
[Round "4.5"]
[White "Van Foreest, Jorden"]
[Black "Giri, Anish"]
[Result "1-0"]
[ECO "A30"]
[WhiteElo "2714"]
[BlackElo "2773"]
[Annotator "TA"]
[PlyCount "93"]
[EventDate "2022.04.14"]
[EventType "tourn"]
[EventCountry "NOR"]
[SourceTitle "playchess.com"]
[Source "ChessBase"]
[SourceQuality "1"]
[TimeControl "300+3"]

{[%evp 20,93,22,29,45,31,29,18,13,0,4,10,24,-21,0,0,0,0,14,-30,-15,-14,-33,-72,-90,-84,-23,-23,-18,-70,-72,-60,-46,-144,-4,-56,-34,-162,-13,-13,-2,-2,-6,-2,0,0,0,0,0,0,0,0,0,0,0,0,0,0,0,0,0,0,0,0,0,0,0,-360,-8,-36,772,747,624,510,29996,29997]} 1. Nf3 {[%emt 0:00:00]} c5 {[%emt 0:00:00]} 2. b3 {[%emt 0:00:03]} Nf6 {[%emt 0:00:07]} 3. Bb2 {[%emt 0:00:01]} e6 {[%emt 0:00:02]} 4. e3 {[%emt 0:00:03]} Nc6 {[%emt 0:00:03]} 5. d4 {[%emt 0:00:07]} cxd4 {[%emt 0:00:01]} 6. Nxd4 {[%emt 0:00:04]} Nxd4 {[%emt 0:00:02]} 7. Qxd4 {[%emt 0:00:09]} b6 {[%emt 0:00:03]} 8. Be2 {[%emt 0:00:20]} Bb7 {[%emt 0:00:01]} 9. O-O {[%emt 0:00:02]} Be7 {[%emt 0:00:02]} 10. c4 {[%emt 0:00:02]} O-O {[%emt 0:00:00]} 11. Nc3 {[%emt 0:00:02]} Bc6 {[%emt 0:00:13] [#] A30: Symmetrical English: Double Fianchetto and Hedgehog.} 12. Rad1 $146 {[%emt 0:00:09]} (12. Rfd1 {feels hotter.} Qb8 13. Nb5 a5 14. a4) ({Predecessor:} 12. Rfd1 Qb8 13. a3 Qb7 14. Bf1 a5 15. Rd2 Rfd8 16. Rad1 Bf8 17. Qh4 h6 18. Qg3 Qb8 19. Be2 Qxg3 20. hxg3 {½-½ (57) Badea,B (2492)-Barnaure,V (2416) Bucharest 2006}) 12... a6 {[%emt 0:00:04]} 13. a4 {[%emt 0:00:41]} Qb8 {[%emt 0:00:10] The position is equal.} 14. Bf3 {[%emt 0:00:08]} (14. Bd3 {seems wilder.} h6 15. Qh4 Qe5 16. Rc1) 14... Bxf3 {[%emt 0:00:29]} 15. gxf3 {[%emt 0:00:00]} Qb7 {[%emt 0:00:01]} 16. Ne4 {[%emt 0:00:07]} Rfd8 {[%emt 0:00:11]} (16... d6 $5) 17. Qe5 {[%emt 0:00:28]} ({Much weaker is} 17. Nxf6+ Bxf6 18. Qd2 Qxf3 $17) 17... Ne8 {[%emt 0:00:41]} 18. Kh1 {[%emt 0:00:20]} f6 {[%emt 0:00:47]} 19. Qg3 {[%emt 0:00:36]} d5 {[%emt 0:00:10]} 20. cxd5 {[%emt 0:00:01]} Rxd5 {[%emt 0:00:08]} 21. Rg1 {[%emt 0:00:43]} Rxd1 {[%emt 0:00:33]} 22. Rxd1 {[%emt 0:00:00]} Rd8 {[%emt 0:00:04]} (22... b5 $17 {White must now prevent ...bxa4.} 23. axb5 Qxb5) 23. Rxd8 $11 {[%emt 0:00:22]} Bxd8 {[%emt 0:00:01]} 24. Kg2 {[%emt 0:00:01]} (24. Qg1 $11) 24... Bc7 $15 {[%emt 0:00:37]} 25. Qh3 {[%emt 0:00:45]} Qd5 {[%emt 0:00:03]} 26. b4 {[%emt 0:00:24] [#]} ({White should play} 26. Bd4 $1 $15) 26... h6 {[%emt 0:00:48]} (26... f5 $1 $17 {[%cal Rf5e4]} 27. Ng3 Qc4) 27. Qg4 {[%emt 0:00:12]} (27. b5 $11) 27... Kf7 {[%emt 0:00:12]} 28. Ng3 {[%emt 0:00:21]} ({White should try} 28. b5 $1 $15) 28... Bxg3 {[%emt 0:00:08]} (28... Qb3 $19 29. Qd4 Qxa4) 29. hxg3 $11 {[%emt 0:00:02]} b5 {[%emt 0:00:11]} 30. axb5 {[%emt 0:00:01]} axb5 {[%emt 0:00:00]} 31. Bd4 {[%emt 0:00:10]} Nd6 {[%emt 0:00:11]} 32. Bc5 {[%emt 0:00:01] Threatens to win with Bxd6.} Nc4 {[%emt 0:00:04]} 33. e4 {[%emt 0:00:02]} Qg5 {[%emt 0:00:04]} 34. Qh3 {[%emt 0:00:10]} f5 {[%emt 0:00:00]} 35. exf5 {[%emt 0:00:03]} exf5 {[%emt 0:00:02]} 36. Qh1 {[%emt 0:00:02]} f4 {[%emt 0:00:07]} 37. Qd1 {[%emt 0:00:02] And now Qd7+ would win.} fxg3 {[%emt 0:00:03]} 38. Qd7+ $1 {[%emt 0:00:02]} ({Don't go for} 38. fxg3 $2 {[#]} Qxc5 $3 {[%mdl 512]} 39. Qd7+ Qe7 40. Qxb5 Qe6 $19) 38... Kg8 {[%emt 0:00:02] aiming for ...gxf2+.} 39. Qe6+ {[%emt 0:00:11]} Kh7 {[%emt 0:00:02] Strongly threatening ...gxf2+.} 40. fxg3 {[%emt 0:00:00]} Qd2+ {[%emt 0:00:10]} 41. Kh3 {[%emt 0:00:01]} Qd3 {[%emt 0:00:00]} 42. f4 {[%emt 0:00:03]} Nd2 {[%emt 0:00:08]} 43. Qe3 $2 {[%emt 0:00:05][%mdl 8192]} (43. Kh4 $11 {and White has nothing to worry.}) 43... Qd5 $2 {[%emt 0:00:09]} ({Better is} 43... Qf1+ $19 44. Kg4 Qd1+ 45. Kf5 Nf1) 44. Qe2 {[%emt 0:00:04]} Qe4 $2 {[%emt 0:00:10][%mdl 8192]} 45. Qxd2 $18 {[%emt 0:00:03]} Qh1+ {[%emt 0:00:01]} 46. Kg4 {[%emt 0:00:01]} g6 {[%emt 0:00:16]} (46... h5+ $18 47. Kg5 Qf3) 47. Qd7+ {[%emt 0:00:01] Weighted Error Value: White=0.44/Black=0.57} 1-0

[Event "MCCT Oslo Esports Cup 2022"]
[Site "Oslo"]
[Date "2022.04.20"]
[Round "4.6"]
[White "Giri, Anish"]
[Black "Van Foreest, Jorden"]
[Result "0-1"]
[ECO "E73"]
[WhiteElo "2773"]
[BlackElo "2714"]
[Annotator "TA"]
[PlyCount "54"]
[EventDate "2022.04.14"]
[EventType "tourn"]
[EventCountry "NOR"]
[SourceTitle "playchess.com"]
[Source "ChessBase"]
[SourceQuality "1"]
[TimeControl "300+3"]

{[%evp 13,54,42,50,39,49,50,57,35,54,18,5,19,11,13,21,0,56,58,100,79,89,68,76,82,108,112,110,72,127,37,46,29,48,25,24,23,34,0,22,0,37,-777,-728]} 1. c4 {[%emt 0:00:00]} Nf6 {[%emt 0:00:00]} 2. Nc3 {[%emt 0:00:01]} g6 {[%emt 0:00:01]} 3. e4 {[%emt 0:00:01]} d6 {[%emt 0:00:01]} 4. d4 {[%emt 0:00:01]} Bg7 {[%emt 0:00:01]} 5. Be2 {[%emt 0:00:00]} O-O {[%emt 0:00:02]} 6. Be3 {[%emt 0:00:01]} c5 {[%emt 0:00:04]} 7. d5 {[%emt 0:00:00]} e6 {[%emt 0:00:01]} 8. Nf3 {[%emt 0:00:01] E73: King's Indian: Averbakh Variation without 6...c5.} exd5 {[%emt 0:00:02]} 9. cxd5 {[%emt 0:00:00]} Nbd7 {[%emt 0:00:00][%cal Ob7b5,Bb8d7,Bd7e5,Be5f7][%mdl 32]} 10. Nd2 {[%emt 0:00:12] White is slightly better.} Ne5 {[%emt 0:00:02]} 11. h3 {[%emt 0:00:04] Inhibits Nfg4.} (11. Bg5 $5 {[%cal Rf2f4]}) 11... Ne8 {[%emt 0:00:08]} 12. O-O {[%emt 0:00:07] [#]} f5 $146 {[%emt 0:00:01] [#] White must now prevent ...f4.} ({Predecessor:} 12... Qh4 13. Nf3 {½-½ (13) Treppner,G (2340)-Pichler,J Pang 1983}) 13. f4 {[%emt 0:00:02]} Nf7 {[%emt 0:00:02]} 14. exf5 {[%emt 0:00:27]} gxf5 {[%emt 0:00:01]} (14... Bxf5 $11 15. g4 Bd7) 15. a4 $14 {[%emt 0:00:13]} Nf6 {[%emt 0:00:19]} 16. Bf3 {[%emt 0:00:08]} a6 {[%emt 0:00:33]} 17. Bf2 {[%emt 0:00:18]} Bd7 {[%emt 0:00:08]} 18. a5 {[%emt 0:00:02]} b5 {[%emt 0:00:06]} 19. axb6 $1 {[%emt 0:00:01]} Qxb6 {[%emt 0:00:02]} 20. Qc2 {[%emt 0:00:06]} Rfe8 {[%emt 0:00:19]} (20... Qb4 $142) 21. Rfe1 {[%emt 0:00:03]} (21. Nc4 $16 Qb4 22. b3) 21... Qb4 {[%emt 0:00:06]} 22. g3 {[%emt 0:00:11]} a5 {[%emt 0:00:03]} 23. Re6 {[%emt 0:00:22][%cal Oa1a2]} Rab8 {[%emt 0:00:12]} 24. Rxe8+ {[%emt 0:00:58]} Nxe8 {[%emt 0:00:00]} 25. Nd1 {[%emt 0:00:28]} (25. Ra2 $5 {[%cal Rc2d3]}) 25... a4 {[%emt 0:00:18]} (25... Bxb2 $2 26. Rb1 Ba4 27. Qxb2 $18) 26. Nc4 {[%emt 0:00:19]} Nc7 {[%emt 0:00:11]} 27. Be1 $2 {[%emt 0:00:18][%mdl 8192] [#]} Qxe1+ {[%emt 0:00:03] Weighted Error Value: White=0.57/Black=0.17 (very precise)} 0-1

[Event "MCCT Oslo Esports Cup 2022"]
[Site "Oslo"]
[Date "2022.04.20"]
[Round "4.6"]
[White "Duda, Jan-Krzysztof"]
[Black "Mamedyarov, Shakhriyar"]
[Result "1-0"]
[ECO "E14"]
[WhiteElo "2750"]
[BlackElo "2771"]
[Annotator "TA"]
[PlyCount "45"]
[EventDate "2022.04.14"]
[EventType "tourn"]
[EventCountry "NOR"]
[SourceTitle "playchess.com"]
[Source "ChessBase"]
[SourceQuality "1"]
[TimeControl "300+3"]

{[%evp 21,45,14,8,16,10,0,7,0,2,7,2,2,62,65,67,69,79,91,641,627,896,898,815,431,663,627]} 1. d4 {[%emt 0:00:00]} Nf6 {[%emt 0:00:00]} 2. c4 {[%emt 0:00:01]} e6 {[%emt 0:00:01]} 3. Nf3 {[%emt 0:00:02]} d5 {[%emt 0:00:00]} 4. Nc3 {[%emt 0:00:01]} c6 {[%emt 0:00:12]} 5. e3 {[%emt 0:00:04]} Nbd7 {[%emt 0:00:02]} 6. Qc2 {[%emt 0:00:01]} b6 {[%emt 0:00:06]} 7. cxd5 {[%emt 0:00:10]} exd5 {[%emt 0:00:01]} 8. Bd3 {[%emt 0:00:05]} Bb7 {[%emt 0:00:02]} 9. O-O {[%emt 0:00:13]} Be7 {[%emt 0:00:01]} 10. e4 {[%emt 0:00:07]} dxe4 {[%emt 0:00:01]} 11. Nxe4 {[%emt 0:00:00]} O-O {[%emt 0:00:01]} 12. Nxf6+ $5 {[%emt 0:00:30][%mdl 4] An interesting side line. E14: Queen's Indian: Classical Variation (4 e3).} Nxf6 {[%emt 0:00:00] [#]} 13. Bg5 $5 $146 {[%emt 0:00:02][%mdl 8] An interesting novelty.} ({Predecessor:} 13. Bf4 c5 14. dxc5 Bxf3 {½-½ (14) Lopes,R (2159)-Meissner,R (2233) ICCF email 2011}) 13... h6 {[%emt 0:00:06]} 14. Bh4 {[%emt 0:00:01] The position is equal.} c5 {[%emt 0:00:07]} 15. dxc5 {[%emt 0:00:50]} Bxf3 {[%emt 0:00:03]} 16. gxf3 {[%emt 0:00:00] Black must now prevent c6.} bxc5 {[%emt 0:00:34]} ({Black should try} 16... Qd4 $1 $11 17. Bh7+ Kh8) 17. Rad1 $36 {[%emt 0:00:03][%mdl 2048] [#] And now Bxf6 would win. White has good play.} Qb6 {[%emt 0:00:09]} 18. Rfe1 {[%emt 0:00:03]} Bd8 {[%emt 0:00:30]} 19. Bc4 {[%emt 0:00:08] &Bianco is more active.} Nh5 $2 {[%emt 0:00:10][%mdl 8192] [#]} (19... Nh7 $16 20. Bg3 Bf6) 20. Bxf7+ $1 $18 {[%emt 0:00:18][%mdl 512] White is clearly winning.} Kxf7 {[%emt 0:00:11]} (20... Kh8 21. Bxd8) 21. Qc4+ {[%emt 0:00:02]} Kg6 {[%emt 0:00:03]} 22. Re6+ {[%emt 0:00:04]} Qxe6 {[%emt 0:00:03]} (22... Nf6 $142 23. Rxb6 axb6 24. Qd3+ Kf7 25. Qc4+ Kg6 26. Qd3+ Kf7 27. Qb3+ Kg6 28. Qc2+ Kf7 29. Qc4+ Kg6) 23. Qxe6+ {[%emt 0:00:00] White took control after the opening.  Weighted Error Value: White=0.31/Black=1.00} 1-0

[Event "MCCT Oslo Esports Cup 2022"]
[Site "Oslo"]
[Date "2022.04.20"]
[Round "5.1"]
[White "Mamedyarov, Shakhriyar"]
[Black "Giri, Anish"]
[Result "0-1"]
[ECO "D02"]
[WhiteElo "2771"]
[BlackElo "2773"]
[Annotator "TA"]
[PlyCount "68"]
[EventDate "2022.04.14"]
[EventType "tourn"]
[EventCountry "NOR"]
[SourceTitle "playchess.com"]
[Source "ChessBase"]
[SourceQuality "1"]
[TimeControl "900+10"]

{[%evp 11,68,-35,-33,-33,-21,-42,-53,-45,-21,-31,-40,-42,-25,-72,-82,-111,-67,-83,-98,-104,-25,-83,-47,-46,-42,-43,-47,-39,-51,-102,-86,-175,-193,-174,-155,-273,-227,-274,-240,-231,-235,-231,-225,-273,-267,-282,-277,-464,-484,-484,-484,-484,-477,-472,-448,-972,-743,-1049,-787]} 1. d4 {[%emt 0:00:00]} Nf6 {[%emt 0:00:00]} 2. Nf3 {[%emt 0:00:04]} g6 {[%emt 0:00:02]} 3. Nbd2 {[%emt 0:00:04]} d5 {[%emt 0:00:05]} 4. e3 {[%emt 0:00:03]} Bg7 {[%emt 0:00:29]} 5. c4 {[%emt 0:00:06]} O-O {[%emt 0:01:08]} 6. Be2 {[%emt 0:00:26]} c5 {[%emt 0:00:29]} 7. dxc5 {[%emt 0:00:04] D02: 1 d4 d5 2 Nf3 sidelines, including 2...Nf6 3 g3 and 2...Nf6 3 Bf4.} Na6 {[%emt 0:01:28]} 8. c6 {[%emt 0:02:41]} bxc6 {[%emt 0:00:01]} 9. O-O {[%emt 0:00:01] [#] Black is slightly better.} Qb6 $146 {[%emt 0:00:15]} ({Predecessor:} 9... Qd6 10. a3 e5 11. b4 c5 12. bxc5 Nxc5 13. Bb2 e4 14. Nd4 Bd7 15. a4 Rfc8 {½-½ (61) Mirzoev,A (2541)-Biolek,R (2437) Ceske Budejovice 2017}) 10. cxd5 {[%emt 0:02:02]} cxd5 {[%emt 0:00:07]} 11. Nb3 {[%emt 0:00:01]} Nb4 {[%emt 0:00:35]} 12. Nbd4 {[%emt 0:01:14]} (12. Bd2 $11) 12... Ne4 $17 {[%emt 0:00:37]} 13. Nd2 {[%emt 0:01:49]} e5 {[%emt 0:00:38]} (13... Bxd4 $6 14. exd4 Bf5 15. Nb3 $15) 14. Nc2 {[%emt 0:00:21]} Nxc2 {[%emt 0:02:30] 0x0.001b374052eddp-1022s more active pieces. The white rooks are badly placed.} 15. Qxc2 {[%emt 0:00:00]} Nc5 {[%emt 0:00:33]} (15... Nd6 $17 16. Qd1 Rd8) 16. Nb3 {[%emt 0:00:18]} (16. b4 $11 {keeps the balance.} Ne6 17. b5) 16... Na4 {[%emt 0:00:59]} 17. e4 {[%emt 0:00:56]} Be6 {[%emt 0:00:58]} 18. exd5 {[%emt 0:00:03]} Bxd5 {[%emt 0:00:01]} 19. Be3 {[%emt 0:00:16]} Qb7 {[%emt 0:00:17]} 20. f3 {[%emt 0:01:06] Black continues to play with concentration.} (20. Rfc1 $15) 20... e4 {[%emt 0:00:27]} 21. Nd4 {[%emt 0:01:13]} (21. fxe4 $17 Bxe4 22. Bf3 Bxf3 23. Rxf3) 21... Nxb2 $19 {[%emt 0:01:42]} 22. Rab1 {[%emt 0:02:27]} Rab8 {[%emt 0:01:03][%cal Ba8b8,Bb8b4,Bb4c4][%mdl 32]} 23. Nb3 {[%emt 0:00:01]} (23. a4 $17 {was necessary.}) 23... Rfc8 {[%emt 0:00:34]} (23... Bxb3 24. axb3 Rbc8 25. Bc4 $17 (25. Qxe4 $2 Qxb3 26. Bf2 Rce8 $19)) 24. Nc5 {[%emt 0:00:10]} exf3 {[%emt 0:00:15]} (24... Bxa2 $2 25. Rbc1 exf3 26. Bxf3 $19) 25. Bxf3 {[%emt 0:00:03]} Bxf3 {[%emt 0:00:10]} 26. Rxf3 {[%emt 0:00:00]} Qd5 {[%emt 0:00:03] [#] aiming for ...Bd4.} 27. Rc1 {[%emt 0:00:57]} Rb4 {[%emt 0:01:16] And now ...Rc4 would win.} ({Wrong is} 27... Qxa2 $2 28. Qd2 $19) 28. Qe2 {[%emt 0:00:25]} Rc4 {[%emt 0:01:35]} ({Inferior is} 28... Qxa2 29. Qd2 Rbb8 30. Bg5 $17) 29. Rxc4 {[%emt 0:00:51]} (29. Rcf1 {might work better.} R4xc5 30. Bxc5 Qxc5+ 31. Kh1) 29... Nxc4 {[%emt 0:00:01] Black is clearly winning.} ({And not} 29... Qxc4 30. Qxc4 Nxc4 31. Bf2 $17) 30. Bf2 {[%emt 0:01:11]} Rxc5 {[%emt 0:00:16]} 31. Rd3 {[%emt 0:00:21] Prevents Nd2.} Qe5 {[%emt 0:00:06]} 32. Rd8+ {[%emt 0:00:13]} Bf8 {[%emt 0:00:01]} 33. Qf3 {[%emt 0:00:01]} (33. Qxe5 $142 Rxe5 34. Bxa7) 33... Rb5 {[%emt 0:00:25]} 34. g3 {[%emt 0:00:11]} Nd6 {[%emt 0:00:17] Weighted Error Value: White=0.59/Black=0.25 (precise)} 0-1